[Event "Romanian Championship Open 2025"]
[Site "Craiova"]
[Date "2025.02.16"]
[Round "2.8"]
[White "David, Alexandru-Vasile"]
[Black "Leu, Dragos Stefan"]
[Result "1-0"]
[Annotator "ChessBase"]
[ECO "E29"]
[WhiteElo "2331"]
[BlackElo "2180"]
[PlyCount "45"]
[EventDate "2025.02.12"]
[EventCountry "ROU"]
[SourceTitle "playchess.com"]
[Source "ChessBase"]
[SourceQuality "1"]
[TimeControl "40/5400+30:900+30"]

1. d4 {[%emt 0:00:06]} Nf6 {[%emt 0:00:05]} 2. c4 {[%emt 0:00:06]} e6 {[%emt 0:00:04]} 3. Nc3 {[%emt 0:00:15]} Bb4 {[%emt 0:00:08]} 4. e3 {[%emt 0:00:07]} O-O {[%emt 0:00:09]} 5. a3 {[%emt 0:00:04]} Bxc3+ {[%emt 0:00:44]} 6. bxc3 {[%emt 0:00:07]} b6 {[%emt 0:00:14]} 7. Bd3 {[%emt 0:00:16]} c5 {[%emt 0:00:05]} 8. e4 {[%emt 0:01:24]} Nc6 {[%emt 0:25:35]} 9. Ne2 {[%emt 0:00:29]} Ne8 {[%emt 0:00:36]} 10. O-O {[%emt 0:00:54]} Ba6 {[%emt 0:01:08]} 11. f4 {[%emt 0:00:52]} Na5 {[%emt 0:01:28]} 12. f5 {[%emt 0:00:21]} Bxc4 {[%emt 0:05:27]} 13. f6 {[%emt 0:00:10]} Nxf6 {[%emt 0:28:42]} 14. Bg5 {[%emt 0:01:09]} Qc7 {[%emt 0:11:36]} 15. Rxf6 {[%emt 0:03:18]} gxf6 {[%emt 0:07:27]} 16. Bxf6 {[%emt 0:00:07]} Rfc8 {[%emt 0:02:45]} 17. Bxc4 {[%emt 0:04:13]} Nxc4 {[%emt 0:00:03]} 18. Qd3 {[%emt 0:00:05]} d5 {[%emt 0:03:28]} 19. e5 {[%emt 0:07:02]} Rcb8 {[%emt 0:08:27]} 20. Nf4 {[%emt 0:02:06]} Qc6 {[%emt 0:00:51]} 21. Be7 {[%emt 0:01:54]} h6 {[%emt 0:01:15]} 22. Nh5 {[%emt 0:00:12]} f5 {[%emt 0:00:42]} 23. Qg3+ {[%emt 0:00:06]} 1-0

[Event "Romanian Championship Open 2025"]
[Site "Craiova"]
[Date "2025.02.16"]
[Round "2.9"]
[White "Voiteanu, Gabriel"]
[Black "Filip, Lucian-Ioan"]
[Result "1/2-1/2"]
[Annotator "ChessBase"]
[ECO "E75"]
[WhiteElo "2159"]
[BlackElo "2328"]
[PlyCount "92"]
[EventDate "2025.02.12"]
[EventCountry "ROU"]
[SourceTitle "playchess.com"]
[Source "ChessBase"]
[SourceQuality "1"]
[TimeControl "40/5400+30:900+30"]

1. d4 {[%emt 0:00:05]} Nf6 {[%emt 0:00:05]} 2. c4 {[%emt 0:00:21]} g6 {[%emt 0:00:04]} 3. Nc3 {[%emt 0:00:16]} Bg7 {[%emt 0:00:04]} 4. e4 {[%emt 0:00:04]} d6 {[%emt 0:00:02]} 5. Be2 {[%emt 0:00:08]} O-O {[%emt 0:00:05]} 6. Bg5 {[%emt 0:00:08]} c5 {[%emt 0:01:59]} 7. d5 {[%emt 0:02:07]} e6 {[%emt 0:02:02]} 8. Qd2 {[%emt 0:01:28]} exd5 {[%emt 0:01:26]} 9. exd5 {[%emt 0:00:34]} Qb6 {[%emt 0:00:33]} 10. Nf3 {[%emt 0:05:56]} Bf5 {[%emt 0:01:11]} 11. O-O {[%emt 0:06:11]} Ne4 {[%emt 0:00:50]} 12. Nxe4 {[%emt 0:00:48]} Bxe4 {[%emt 0:00:04]} 13. Rae1 {[%emt 0:28:58]} Nd7 {[%emt 0:39:48]} 14. b3 {[%emt 0:02:42]} Rfe8 {[%emt 0:05:01]} 15. h3 {[%emt 0:08:40]} a5 {[%emt 0:07:46]} 16. Nh2 {[%emt 0:02:07]} Qb4 {[%emt 0:01:11]} 17. Bg4 {[%emt 0:06:02]} f5 {[%emt 0:09:31]} 18. Be2 {[%emt 0:10:28]} a4 {[%emt 0:19:41]} 19. Qxb4 {[%emt 0:13:42]} cxb4 {[%emt 0:00:01]} 20. Bd2 {[%emt 0:00:41]} axb3 {[%emt 0:02:00]} 21. axb3 {[%emt 0:00:07]} Bc3 {[%emt 0:01:17]} 22. Bxc3 {[%emt 0:01:25]} bxc3 {[%emt 0:00:01]} 23. Rc1 {[%emt 0:00:36]} Bxg2 {[%emt 0:05:24]} 24. Kxg2 {[%emt 0:00:29]} Rxe2 {[%emt 0:00:03]} 25. Rxc3 {[%emt 0:00:09]} Nc5 {[%emt 0:00:42]} 26. Nf3 {[%emt 0:03:31]} Ne4 {[%emt 0:00:01]} 27. Re3 {[%emt 0:00:37]} Rb2 {[%emt 0:01:10]} 28. h4 {[%emt 0:00:34]} Raa2 {[%emt 0:00:07]} 29. Ng5 {[%emt 0:00:49]} Nxf2 {[%emt 0:01:49]} 30. Re8+ {[%emt 0:01:56]} Kg7 {[%emt 0:00:02]} 31. Re7+ {[%emt 0:00:25]} Kf8 {[%emt 0:00:29]} 32. Rxb7 {[%emt 0:00:47]} Ne4+ {[%emt 0:01:10]} 33. Kf3 {[%emt 0:00:08]} Nd2+ {[%emt 0:00:10]} 34. Kf4 {[%emt 0:00:09]} Nxf1 {[%emt 0:00:11]} 35. Ne6+ {[%emt 0:02:00]} Ke8 {[%emt 0:00:10]} 36. Kg5 {[%emt 0:00:42]} Nd2 {[%emt 0:01:03]} 37. Rc7 {[%emt 0:00:38]} Ne4+ {[%emt 0:00:11]} 38. Kh6 {[%emt 0:00:03]} Nc5 {[%emt 0:00:50]} 39. Nxc5 {[%emt 0:01:44]} dxc5 {[%emt 0:00:02]} 40. Rxc5 {[%emt 0:00:00]} Rxb3 {[%emt 0:00:00]} 41. Kxh7 {[%emt 0:01:00]} f4 {[%emt 0:01:54]} 42. Kxg6 {[%emt 0:00:16]} f3 {[%emt 0:00:40]} 43. Rc8+ {[%emt 0:01:26]} Kd7 {[%emt 0:00:08]} 44. Rf8 {[%emt 0:00:04]} Rg2+ {[%emt 0:02:19]} 45. Kh5 {[%emt 0:03:46]} Ke7 {[%emt 0:00:35]} 46. Rf4 {[%emt 0:00:27]} Rb8 {[%emt 0:00:07]} 1/2-1/2

[Event "Romanian Championship Open 2025"]
[Site "Craiova"]
[Date "2025.02.16"]
[Round "2.10"]
[White "Filip, Andrei"]
[Black "Ignat, Matei-Marius"]
[Result "1/2-1/2"]
[Annotator "ChessBase"]
[ECO "B36"]
[WhiteElo "2320"]
[BlackElo "2137"]
[PlyCount "198"]
[EventDate "2025.02.12"]
[EventCountry "ROU"]
[SourceTitle "playchess.com"]
[Source "ChessBase"]
[SourceQuality "1"]
[TimeControl "40/5400+30:900+30"]

1. e4 {[%emt 0:00:02]} c5 {[%emt 0:00:17]} 2. Nf3 {[%emt 0:00:08]} Nc6 {[%emt 0:00:07]} 3. d4 {[%emt 0:00:08]} cxd4 {[%emt 0:00:09]} 4. Nxd4 {[%emt 0:00:03]} g6 {[%emt 0:00:16]} 5. c4 {[%emt 0:01:48]} Nf6 {[%emt 0:00:56]} 6. Nc3 {[%emt 0:00:37]} d6 {[%emt 0:00:18]} 7. Be2 {[%emt 0:01:34]} Nxd4 {[%emt 0:00:48]} 8. Qxd4 {[%emt 0:00:02]} Bg7 {[%emt 0:00:06]} 9. Be3 {[%emt 0:02:49]} O-O {[%emt 0:01:22]} 10. Qd3 {[%emt 0:00:36]} a5 {[%emt 0:03:58]} 11. O-O {[%emt 0:04:43]} a4 {[%emt 0:02:05]} 12. Bd4 {[%emt 0:09:12]} Bd7 {[%emt 0:10:51]} 13. f4 {[%emt 0:04:18]} Bc6 {[%emt 0:02:56]} 14. f5 {[%emt 0:19:15]} Nd7 {[%emt 0:08:31]} 15. Bxg7 {[%emt 0:02:27]} Kxg7 {[%emt 0:00:36]} 16. Kh1 {[%emt 0:01:47]} Qb6 {[%emt 0:10:26]} 17. Qd2 {[%emt 0:04:15]} f6 {[%emt 0:10:31]} 18. Bd3 {[%emt 0:05:05]} Ne5 {[%emt 0:06:00]} 19. Ne2 {[%emt 0:01:09]} g5 {[%emt 0:03:09]} 20. Rab1 {[%emt 0:02:23]} Rfc8 {[%emt 0:03:44]} 21. b3 {[%emt 0:05:42]} axb3 {[%emt 0:03:35]} 22. axb3 {[%emt 0:00:29]} Ra3 {[%emt 0:01:17]} 23. Bc2 {[%emt 0:01:27]} Rca8 {[%emt 0:07:45]} 24. Nd4 {[%emt 0:06:49]} Kh8 {[%emt 0:05:55]} 25. h4 {[%emt 0:11:01]} Nf7 {[%emt 0:04:43]} 26. Ne6 {[%emt 0:01:11]} Bd7 {[%emt 0:03:06]} 27. e5 {[%emt 0:02:37]} Qa5 {[%emt 0:09:55]} 28. Qxa5 {[%emt 0:00:40]} R3xa5 {[%emt 0:00:20]} 29. exf6 {[%emt 0:00:34]} exf6 {[%emt 0:00:06]} 30. hxg5 {[%emt 0:00:55]} fxg5 {[%emt 0:00:03]} 31. Nc7 {[%emt 0:04:22]} Rc8 {[%emt 0:00:29]} 32. Ne6 {[%emt 0:01:08]} Re5 {[%emt 0:00:55]} 33. Rbe1 {[%emt 0:01:35]} Rxe1 {[%emt 0:01:07]} 34. Rxe1 {[%emt 0:00:05]} b5 {[%emt 0:00:17]} 35. Nd4 {[%emt 0:02:38]} bxc4 {[%emt 0:00:22]} 36. Re7 {[%emt 0:00:28]} cxb3 {[%emt 0:00:45]} 37. Bxb3 {[%emt 0:00:06]} Ne5 {[%emt 0:00:09]} 38. g3 {[%emt 0:02:53]} h5 {[%emt 0:00:59]} 39. Be6 {[%emt 0:01:52]} Bxe6 {[%emt 0:00:30]} 40. fxe6 {[%emt 0:00:00]} Rc1+ {[%emt 0:00:00]} 41. Kg2 {[%emt 0:00:44]} Re1 {[%emt 0:11:58]} 42. Rd7 {[%emt 0:06:07]} Ng6 {[%emt 0:00:41]} 43. Rxd6 {[%emt 0:01:20]} g4 {[%emt 0:01:23]} 44. Nf5 {[%emt 0:01:46]} h4 {[%emt 0:02:14]} 45. gxh4 {[%emt 0:04:44]} Rxe6 {[%emt 0:01:13]} 46. Rd8+ {[%emt 0:00:39]} Kh7 {[%emt 0:00:04]} 47. Rd7+ {[%emt 0:00:06]} Kh8 {[%emt 0:00:22]} 48. Kg3 {[%emt 0:01:21]} Nxh4 {[%emt 0:00:50]} 49. Nxh4 {[%emt 0:00:16]} Kg8 {[%emt 0:00:31]} 50. Kxg4 {[%emt 0:00:14]} Kf8 {[%emt 0:00:57]} 51. Kf5 {[%emt 0:00:12]} Re1 {[%emt 0:00:28]} 52. Ng6+ {[%emt 0:00:13]} Ke8 {[%emt 0:00:09]} 53. Rh7 {[%emt 0:00:24]} Kd8 {[%emt 0:00:37]} 54. Ne5 {[%emt 0:00:15]} Ra1 {[%emt 0:00:22]} 55. Nc6+ {[%emt 0:00:55]} Kc8 {[%emt 0:00:14]} 56. Ke6 {[%emt 0:00:29]} Rd1 {[%emt 0:00:18]} 57. Nb4 {[%emt 0:00:27]} Rg1 {[%emt 0:00:22]} 58. Nd3 {[%emt 0:00:37]} Rg6+ {[%emt 0:00:46]} 59. Kd5 {[%emt 0:00:05]} Rg5+ {[%emt 0:00:10]} 60. Ne5 {[%emt 0:00:15]} Rg1 {[%emt 0:00:19]} 61. Nc4 {[%emt 0:01:31]} Rc1 {[%emt 0:01:25]} 62. Nb6+ {[%emt 0:00:20]} Kd8 {[%emt 0:01:05]} 63. Kd6 {[%emt 0:00:14]} Ke8 {[%emt 0:00:05]} 64. Re7+ {[%emt 0:00:33]} Kd8 {[%emt 0:00:30]} 65. Ra7 {[%emt 0:01:38]} Ke8 {[%emt 0:00:39]} 66. Nd7 {[%emt 0:01:09]} Rb1 {[%emt 0:00:52]} 67. Nf6+ {[%emt 0:01:23]} Kf8 {[%emt 0:00:03]} 68. Nh7+ {[%emt 0:00:27]} Ke8 {[%emt 0:00:36]} 69. Ng5 {[%emt 0:00:20]} Rb6+ {[%emt 0:00:30]} 70. Ke5 {[%emt 0:00:18]} Rb5+ {[%emt 0:00:44]} 71. Kf6 {[%emt 0:00:05]} Rb1 {[%emt 0:00:16]} 72. Nf7 {[%emt 0:00:58]} Rb6+ {[%emt 0:00:27]} 73. Kf5 {[%emt 0:00:39]} Rb5+ {[%emt 0:00:41]} 74. Ke6 {[%emt 0:00:21]} Kf8 {[%emt 0:00:38]} 75. Nd6 {[%emt 0:01:14]} Rb1 {[%emt 0:00:20]} 76. Ra8+ {[%emt 0:00:51]} Kg7 {[%emt 0:00:03]} 77. Nf5+ {[%emt 0:00:09]} Kh7 {[%emt 0:00:40]} 78. Ra7+ {[%emt 0:00:23]} Kg8 {[%emt 0:00:31]} 79. Ke7 {[%emt 0:00:37]} Rc1 {[%emt 0:00:47]} 80. Rd7 {[%emt 0:00:40]} Ra1 {[%emt 0:00:29]} 81. Kf6 {[%emt 0:00:20]} Ra6+ {[%emt 0:00:32]} 82. Nd6 {[%emt 0:00:13]} Ra1 {[%emt 0:00:37]} 83. Rb7 {[%emt 0:01:25]} Ra6 {[%emt 0:00:33]} 84. Rg7+ {[%emt 0:00:11]} Kf8 {[%emt 0:00:29]} 85. Rd7 {[%emt 0:00:12]} Kg8 {[%emt 0:00:21]} 86. Kg6 {[%emt 0:00:23]} Kf8 {[%emt 0:00:25]} 87. Kh7 {[%emt 0:01:03]} Ra7 {[%emt 0:00:44]} 88. Nb7 {[%emt 0:00:12]} Ra1 {[%emt 0:00:34]} 89. Nc5 {[%emt 0:01:04]} Rh1+ {[%emt 0:00:24]} 90. Kg6 {[%emt 0:00:02]} Rg1+ {[%emt 0:00:26]} 91. Kf6 {[%emt 0:00:19]} Rf1+ {[%emt 0:00:07]} 92. Ke5 {[%emt 0:00:06]} Re1+ {[%emt 0:00:13]} 93. Ne4 {[%emt 0:00:06]} Ra1 {[%emt 0:01:05]} 94. Nd6 {[%emt 0:00:41]} Re1+ {[%emt 0:00:31]} 95. Kf6 {[%emt 0:00:03]} Rf1+ {[%emt 0:00:09]} 96. Nf5 {[%emt 0:00:05]} Ke8 {[%emt 0:00:08]} 97. Rd2 {[%emt 0:00:04]} Rf4 {[%emt 0:01:06]} 98. Ke5 {[%emt 0:02:16]} Rf1 {[%emt 0:00:10]} 99. Ng3 {[%emt 0:00:34]} Re1+ {[%emt 0:01:43]} 1/2-1/2

[Event "Romanian Championship Open 2025"]
[Site "Craiova"]
[Date "2025.02.16"]
[Round "2.11"]
[White "Sachilaru, Alexandru"]
[Black "Danila, Tudor-Gabriel"]
[Result "1/2-1/2"]
[Annotator "ChessBase"]
[ECO "B12"]
[WhiteElo "2305"]
[BlackElo "2136"]
[PlyCount "162"]
[EventDate "2025.02.12"]
[EventCountry "ROU"]
[SourceTitle "playchess.com"]
[Source "ChessBase"]
[SourceQuality "1"]
[TimeControl "40/5400+30:900+30"]

1. e4 {[%emt 0:00:08]} c6 {[%emt 0:00:08]} 2. d4 {[%emt 0:00:18]} d5 {[%emt 0:00:04]} 3. e5 {[%emt 0:00:29]} c5 {[%emt 0:00:02]} 4. dxc5 {[%emt 0:00:29]} e6 {[%emt 0:00:07]} 5. Qg4 {[%emt 0:00:29]} h5 {[%emt 0:00:49]} 6. Qd1 {[%emt 0:00:36]} Bxc5 {[%emt 0:04:51]} 7. Nf3 {[%emt 0:00:42]} Nc6 {[%emt 0:01:00]} 8. Bd3 {[%emt 0:01:16]} Qc7 {[%emt 0:10:33]} 9. Qe2 {[%emt 0:06:43]} g5 {[%emt 0:23:33]} 10. Bxg5 {[%emt 0:07:41]} Nd4 {[%emt 0:00:04]} 11. Nxd4 {[%emt 0:01:48]} Bxd4 {[%emt 0:00:05]} 12. c3 {[%emt 0:01:03]} Bxe5 {[%emt 0:00:22]} 13. Bb5+ {[%emt 0:03:47]} Bd7 {[%emt 0:00:37]} 14. Bxd7+ {[%emt 0:02:32]} Kxd7 {[%emt 0:00:17]} 15. Nd2 {[%emt 0:02:19]} Re8 {[%emt 0:09:45]} 16. Rc1 {[%emt 0:03:40]} f6 {[%emt 0:11:06]} 17. Be3 {[%emt 0:02:16]} Ne7 {[%emt 0:03:23]} 18. O-O {[%emt 0:09:37]} Bxh2+ {[%emt 0:08:41]} 19. Kh1 {[%emt 0:00:03]} Nc6 {[%emt 0:01:42]} 20. f4 {[%emt 0:06:40]} Bg3 {[%emt 0:00:27]} 21. c4 {[%emt 0:02:17]} d4 {[%emt 0:00:23]} 22. Bxd4 {[%emt 0:03:53]} Nxd4 {[%emt 0:02:11]} 23. Qd3 {[%emt 0:01:14]} Kc8 {[%emt 0:01:49]} 24. Qxd4 {[%emt 0:01:30]} Kb8 {[%emt 0:01:26]} 25. Ne4 {[%emt 0:11:15]} Bxf4 {[%emt 0:06:09]} 26. Nxf6 {[%emt 0:00:48]} Bxc1 {[%emt 0:00:04]} 27. Nxe8 {[%emt 0:00:39]} Rxe8 {[%emt 0:00:04]} 28. Rxc1 {[%emt 0:00:03]} Rd8 {[%emt 0:01:15]} 29. Qe4 {[%emt 0:00:55]} Rg8 {[%emt 0:04:13]} 30. Qxe6 {[%emt 0:04:38]} Qg3 {[%emt 0:01:23]} 31. Qd5 {[%emt 0:04:59]} a6 {[%emt 0:02:27]} 32. c5 {[%emt 0:03:53]} Rg6 {[%emt 0:02:03]} 33. Qf3 {[%emt 0:03:52]} Qe5 {[%emt 0:01:28]} 34. Qf2 {[%emt 0:04:48]} Qd5 {[%emt 0:02:08]} 35. Re1 {[%emt 0:01:43]} Rg8 {[%emt 0:00:06]} 36. b4 {[%emt 0:01:39]} h4 {[%emt 0:00:15]} 37. Qf3 {[%emt 0:01:13]} Qc4 {[%emt 0:01:37]} 38. Qe4 {[%emt 0:03:46]} Rg4 {[%emt 0:00:36]} 39. Qxc4 {[%emt 0:02:47]} Rxc4 {[%emt 0:00:05]} 40. a3 {[%emt 0:00:00]} a5 {[%emt 0:00:00]} 41. bxa5 {[%emt 0:01:21]} Rxc5 {[%emt 0:01:54]} 42. Re4 {[%emt 0:01:07]} Rxa5 {[%emt 0:00:27]} 43. a4 {[%emt 0:00:05]} Rh5 {[%emt 0:02:27]} 44. Kh2 {[%emt 0:00:47]} Kc7 {[%emt 0:00:04]} 45. Kh3 {[%emt 0:00:31]} Kd6 {[%emt 0:00:02]} 46. Rxh4 {[%emt 0:00:54]} Ra5 {[%emt 0:02:29]} 47. Rb4 {[%emt 0:00:24]} Ke6 {[%emt 0:00:43]} 48. g4 {[%emt 0:00:40]} Ra7 {[%emt 0:03:57]} 49. Kh4 {[%emt 0:00:50]} Kf6 {[%emt 0:00:06]} 50. Kh5 {[%emt 0:01:57]} Kg7 {[%emt 0:00:02]} 51. Kg5 {[%emt 0:03:42]} Ra5+ {[%emt 0:00:06]} 52. Kf4 {[%emt 0:00:24]} b6 {[%emt 0:00:03]} 53. Ke3 {[%emt 0:01:21]} Kf7 {[%emt 0:00:06]} 54. Kd3 {[%emt 0:01:05]} Ke7 {[%emt 0:00:10]} 55. Kc3 {[%emt 0:00:56]} Kd7 {[%emt 0:00:19]} 56. Kb3 {[%emt 0:01:30]} Re5 {[%emt 0:03:59]} 57. Rd4+ {[%emt 0:01:38]} Ke7 {[%emt 0:00:25]} 58. Kc4 {[%emt 0:03:44]} Ra5 {[%emt 0:01:02]} 59. Kb4 {[%emt 0:00:16]} Rg5 {[%emt 0:00:12]} 60. Kc3 {[%emt 0:00:46]} Ra5 {[%emt 0:00:23]} 61. Rb4 {[%emt 0:00:19]} Rg5 {[%emt 0:01:05]} 62. Kd3 {[%emt 0:00:35]} Ra5 {[%emt 0:00:17]} 63. Ke3 {[%emt 0:00:10]} Kf7 {[%emt 0:00:09]} 64. Kf3 {[%emt 0:00:11]} Kg7 {[%emt 0:00:24]} 65. Kg3 {[%emt 0:00:17]} Kf7 {[%emt 0:00:08]} 66. Kh4 {[%emt 0:00:07]} Kg7 {[%emt 0:00:44]} 67. g5 {[%emt 0:00:08]} Kf7 {[%emt 0:02:20]} 68. Kh5 {[%emt 0:00:21]} Kg7 {[%emt 0:00:06]} 69. Rc4 {[%emt 0:01:36]} Ra7 {[%emt 0:01:29]} 70. Rd4 {[%emt 0:01:42]} Rc7 {[%emt 0:01:50]} 71. Rd6 {[%emt 0:00:58]} Ra7 {[%emt 0:00:15]} 72. Rd4 {[%emt 0:01:01]} Rc7 {[%emt 0:00:04]} 73. Rb4 {[%emt 0:00:51]} Ra7 {[%emt 0:00:07]} 74. Kg4 {[%emt 0:00:19]} Ra5 {[%emt 0:00:15]} 75. Kf4 {[%emt 0:00:36]} Kf7 {[%emt 0:00:07]} 76. Kg4 {[%emt 0:00:44]} Kg7 {[%emt 0:00:07]} 77. Kh5 {[%emt 0:00:49]} Ra7 {[%emt 0:00:38]} 78. Rxb6 {[%emt 0:00:32]} Rxa4 {[%emt 0:00:08]} 79. Rb7+ {[%emt 0:00:04]} Kg8 {[%emt 0:00:07]} 80. Kh6 {[%emt 0:00:05]} Ra6+ {[%emt 0:00:16]} 81. g6 {[%emt 0:00:04]} Ra8 {[%emt 0:00:04]} 1/2-1/2

[Event "Romanian Championship Open 2025"]
[Site "Craiova"]
[Date "2025.02.16"]
[Round "2.12"]
[White "Lucaci, Alin-Marian"]
[Black "Cnejev, Vladimir-Alexandru"]
[Result "0-1"]
[Annotator "ChessBase"]
[ECO "D35"]
[WhiteElo "2137"]
[BlackElo "2300"]
[PlyCount "99"]
[EventDate "2025.02.12"]
[EventCountry "ROU"]
[SourceTitle "playchess.com"]
[Source "ChessBase"]
[SourceQuality "1"]
[TimeControl "40/5400+30:900+30"]

1. d4 {[%emt 0:00:03]} d5 {[%emt 0:01:37]} 2. c4 {[%emt 0:00:07]} e6 {[%emt 0:00:05]} 3. Nc3 {[%emt 0:00:03]} Be7 {[%emt 0:00:04]} 4. cxd5 {[%emt 0:03:04]} exd5 {[%emt 0:01:55]} 5. Bf4 {[%emt 0:00:05]} Nf6 {[%emt 0:00:47]} 6. e3 {[%emt 0:00:46]} Bf5 {[%emt 0:00:34]} 7. Qb3 {[%emt 0:04:32]} Nc6 {[%emt 0:00:31]} 8. Bb5 {[%emt 0:03:46]} O-O {[%emt 0:03:09]} 9. Nf3 {[%emt 0:04:19]} Nb4 {[%emt 0:22:16]} 10. Rc1 {[%emt 0:01:21]} c6 {[%emt 0:19:54]} 11. Be2 {[%emt 0:01:46]} Nh5 {[%emt 0:03:48]} 12. Be5 {[%emt 0:08:03]} f6 {[%emt 0:04:04]} 13. Bg3 {[%emt 0:01:13]} Qb6 {[%emt 0:19:24]} 14. e4 {[%emt 0:10:50]} Bg6 {[%emt 0:09:27]} 15. O-O {[%emt 0:09:05]} Nxg3 {[%emt 0:00:25]} 16. hxg3 {[%emt 0:00:07]} Bf7 {[%emt 0:00:54]} 17. e5 {[%emt 0:03:40]} Na6 {[%emt 0:05:29]} 18. Qd1 {[%emt 0:07:37]} Bh5 {[%emt 0:05:07]} 19. Na4 {[%emt 0:05:34]} Qa5 {[%emt 0:00:00]} 20. a3 {[%emt 0:02:30]} b5 {[%emt 0:00:27]} 21. Nc3 {[%emt 0:14:25]} Rae8 {[%emt 0:00:27]} 22. Qd2 {[%emt 0:02:27]} Qb6 {[%emt 0:00:34]} 23. Rc2 {[%emt 0:04:37]} Nc7 {[%emt 0:00:31]} 24. Rfc1 {[%emt 0:00:42]} Bxf3 {[%emt 0:00:25]} 25. Bxf3 {[%emt 0:02:11]} fxe5 {[%emt 0:00:24]} 26. dxe5 {[%emt 0:01:33]} Ne6 {[%emt 0:00:28]} 27. Rd1 {[%emt 0:05:33]} Kh8 {[%emt 0:00:41]} 28. Ne2 {[%emt 0:01:19]} Bc5 {[%emt 0:00:30]} 29. Nf4 {[%emt 0:01:08]} Nd4 {[%emt 0:00:32]} 30. b4 {[%emt 0:00:42]} Nxf3+ {[%emt 0:00:22]} 31. gxf3 {[%emt 0:00:06]} Be7 {[%emt 0:00:05]} 32. Rdc1 {[%emt 0:00:59]} Bg5 {[%emt 0:01:00]} 33. Ng6+ {[%emt 0:00:45]} hxg6 {[%emt 0:00:05]} 34. Qxg5 {[%emt 0:00:04]} Rxf3 {[%emt 0:00:20]} 35. Qxg6 {[%emt 0:01:28]} Rxe5 {[%emt 0:01:03]} 36. Kg2 {[%emt 0:00:37]} Rf6 {[%emt 0:00:09]} 37. Rh1+ {[%emt 0:00:17]} Kg8 {[%emt 0:00:01]} 38. Qh7+ {[%emt 0:00:22]} Kf7 {[%emt 0:00:14]} 39. f4 {[%emt 0:01:01]} Qe3 {[%emt 0:01:39]} 40. Rf2 {[%emt 0:00:00]} Qe4+ {[%emt 0:00:00]} 41. Qxe4 {[%emt 0:01:46]} Rxe4 {[%emt 0:00:32]} 42. Rc1 {[%emt 0:01:44]} Ke7 {[%emt 0:03:44]} 43. f5 {[%emt 0:02:41]} Kd6 {[%emt 0:08:19]} 44. Rfc2 {[%emt 0:02:12]} Rc4 {[%emt 0:01:01]} 45. Rxc4 {[%emt 0:00:20]} bxc4 {[%emt 0:00:48]} 46. g4 {[%emt 0:00:15]} Ke5 {[%emt 0:00:49]} 47. Kf3 {[%emt 0:00:43]} Kd4 {[%emt 0:01:07]} 48. Kf4 {[%emt 0:01:03]} c3 {[%emt 0:00:14]} 49. g5 {[%emt 0:00:33]} Rf8 {[%emt 0:00:08]} 50. a4 {[%emt 0:10:26]} 0-1

[Event "Romanian Championship Open 2025"]
[Site "Craiova"]
[Date "2025.02.16"]
[Round "2.13"]
[White "Sprincean, Lukas George"]
[Black "Cosma, Ioan"]
[Result "0-1"]
[Annotator "ChessBase"]
[ECO "B87"]
[WhiteElo "2134"]
[BlackElo "2286"]
[PlyCount "120"]
[EventDate "2025.02.12"]
[EventCountry "ROU"]
[SourceTitle "playchess.com"]
[Source "ChessBase"]
[SourceQuality "1"]
[TimeControl "40/5400+30:900+30"]

1. e4 {[%emt 0:00:02]} c5 {[%emt 0:00:17]} 2. Nf3 {[%emt 0:00:07]} d6 {[%emt 0:00:23]} 3. d4 {[%emt 0:00:09]} Nf6 {[%emt 0:00:11]} 4. Nc3 {[%emt 0:00:04]} cxd4 {[%emt 0:00:09]} 5. Nxd4 {[%emt 0:00:06]} a6 {[%emt 0:00:44]} 6. Bc4 {[%emt 0:00:48]} e6 {[%emt 0:01:02]} 7. Bb3 {[%emt 0:00:33]} b5 {[%emt 0:02:47]} 8. f3 {[%emt 0:01:48]} Bb7 {[%emt 0:02:44]} 9. Be3 {[%emt 0:00:59]} Nc6 {[%emt 0:07:04]} 10. a3 {[%emt 0:00:44]} Na5 {[%emt 0:02:56]} 11. Qe2 {[%emt 0:07:57]} e5 {[%emt 0:06:07]} 12. Nf5 {[%emt 0:06:03]} Nxb3 {[%emt 0:01:04]} 13. cxb3 {[%emt 0:00:07]} g6 {[%emt 0:00:32]} 14. Ng3 {[%emt 0:10:20]} h5 {[%emt 0:01:36]} 15. O-O-O {[%emt 0:03:16]} Be7 {[%emt 0:05:13]} 16. Kb1 {[%emt 0:07:11]} O-O {[%emt 0:03:21]} 17. Bg5 {[%emt 0:06:28]} Rc8 {[%emt 0:09:04]} 18. Qd2 {[%emt 0:05:52]} Ne8 {[%emt 0:06:09]} 19. Bh6 {[%emt 0:08:17]} Ng7 {[%emt 0:00:12]} 20. f4 {[%emt 0:02:04]} a5 {[%emt 0:10:00]} 21. Nd5 {[%emt 0:06:09]} Bxd5 {[%emt 0:08:31]} 22. exd5 {[%emt 0:03:46]} exf4 {[%emt 0:01:47]} 23. Qxf4 {[%emt 0:01:13]} Bf6 {[%emt 0:01:56]} 24. Ne4 {[%emt 0:03:02]} Be5 {[%emt 0:00:13]} 25. Qf2 {[%emt 0:00:50]} a4 {[%emt 0:02:32]} 26. b4 {[%emt 0:01:48]} Rc4 {[%emt 0:01:05]} 27. Nd2 {[%emt 0:01:29]} Rd4 {[%emt 0:02:29]} 28. Nf3 {[%emt 0:01:02]} Rxd1+ {[%emt 0:01:43]} 29. Rxd1 {[%emt 0:00:04]} Re8 {[%emt 0:01:32]} 30. Qf1 {[%emt 0:08:42]} Nf5 {[%emt 0:02:09]} 31. Bg5 {[%emt 0:04:00]} Qd7 {[%emt 0:01:44]} 32. Qd3 {[%emt 0:01:34]} Rc8 {[%emt 0:06:55]} 33. Nxe5 {[%emt 0:01:42]} dxe5 {[%emt 0:00:05]} 34. Qe4 {[%emt 0:00:58]} Qd6 {[%emt 0:00:59]} 35. Be3 {[%emt 0:01:51]} Rc4 {[%emt 0:00:54]} 36. Qd3 {[%emt 0:00:43]} Nd4 {[%emt 0:03:37]} 37. Qe4 {[%emt 0:01:35]} f5 {[%emt 0:04:03]} 38. Qh4 {[%emt 0:00:47]} Qxd5 {[%emt 0:00:11]} 39. Bxd4 {[%emt 0:01:58]} Rxd4 {[%emt 0:00:54]} 40. Rxd4 {[%emt 0:00:00]} exd4 {[%emt 0:00:00]} 41. Qg3 {[%emt 0:04:36]} Qe4+ {[%emt 0:01:38]} 42. Ka1 {[%emt 0:01:40]} Kh7 {[%emt 0:03:18]} 43. Qc7+ {[%emt 0:01:48]} Kh6 {[%emt 0:00:08]} 44. Qd8 {[%emt 0:02:06]} h4 {[%emt 0:00:50]} 45. g3 {[%emt 0:03:53]} hxg3 {[%emt 0:01:31]} 46. h4 {[%emt 0:00:29]} Qe5 {[%emt 0:02:54]} 47. Qg5+ {[%emt 0:01:34]} Kh7 {[%emt 0:02:40]} 48. h5 {[%emt 0:00:26]} gxh5 {[%emt 0:01:39]} 49. Qxh5+ {[%emt 0:00:05]} Kg7 {[%emt 0:00:05]} 50. Qg5+ {[%emt 0:00:16]} Kf7 {[%emt 0:00:20]} 51. Qh5+ {[%emt 0:00:12]} Ke7 {[%emt 0:00:13]} 52. Qh7+ {[%emt 0:02:30]} Kd6 {[%emt 0:00:12]} 53. Qb7 {[%emt 0:01:04]} d3 {[%emt 0:05:06]} 54. Qb8+ {[%emt 0:00:35]} Kd5 {[%emt 0:00:09]} 55. Qxb5+ {[%emt 0:00:23]} Ke4 {[%emt 0:00:13]} 56. Qc6+ {[%emt 0:02:00]} Qd5 {[%emt 0:00:59]} 57. Qe8+ {[%emt 0:00:18]} Kf4 {[%emt 0:00:34]} 58. Qh5 {[%emt 0:02:24]} d2 {[%emt 0:00:41]} 59. Qh4+ {[%emt 0:01:14]} Kf3 {[%emt 0:00:15]} 60. Qh1+ {[%emt 0:00:26]} g2 {[%emt 0:00:07]} 0-1